bitfinex/quotes_SOLUSD_20250226
["timestamp","ask_amount","ask_price","bid_price","bid_amount"]
[1740574289254,59.77148314,136.74,136.64,8.4175]
[1740574289425,51.37148314,136.73,136.64,8.4175]
[1740574289627,51.37148314,136.73,136.65,18.64964886]
[1740574289830,51.37148314,136.72,136.64,1.0992]
[1740574290270,51.37148314,136.72,136.65,19.64964886]
[1740574290566,8.4,136.74,136.67,20.0]
[1740574290736,8.4,136.74,136.68,7.3163]
[1740574291350,0.28432314,136.72,136.64,8.4175]
[1740574291549,51.37148314,136.71,136.63,2.132556]
[1740574291755,51.37148314,136.7,136.63,2.132556]
[1740574291937,51.37148314,136.69,136.63,2.132556]
[1740574292142,9.02,136.68,136.63,9.451456]
[1740574292549,9.02,136.68,136.64,18.64964886]
[1740574292750,9.02,136.68,136.65,7.3179]
[1740574292954,9.04,136.72,136.65,7.3179]
[1740574293148,9.04,136.73,136.66,18.64964886]
[1740574294741,9.04,136.73,136.68,18.64964886]
[1740574295960,9.04,136.73,136.66,7.3172]
[1740574296168,81.37471624,136.72,136.63,2.132556]
[1740574296342,51.37148314,136.71,136.63,2.162556]
[1740574296541,0.063,136.68,136.64,18.64964886]
[1740574296838,0.063,136.68,136.66,18.64964886]
[1740574297363,30.0032331,136.72,136.66,18.64964886]
[1740574298551,30.0032331,136.72,136.65,18.64964886]
[1740574298759,30.0032331,136.72,136.66,7.3174]
[1740574298963,30.0032331,136.72,136.67,26.82139514]
[1740574299263,6.2332331,136.72,136.71,38.64964886]
[1740574299658,6.2332331,136.72,136.71,18.64964886]
[1740574300650,6.2332331,136.72,136.71,38.79181043]
[1740574300856,6.2332331,136.72,136.71,47.10651043]
[1740574301074,6.2332331,136.72,136.71,46.10651043]
[1740574302257,6.2332331,136.72,136.71,45.96434886]
[1740574302574,6.2332331,136.72,136.71,18.64964886]
[1740574302954,6.2332331,136.72,136.71,25.96434886]
[1740574303359,6.2332331,136.72,136.71,18.64964886]
[1740574303771,51.37148314,136.8,136.72,18.64964886]
[1740574303989,51.37148314,136.8,136.72,101.54964886]
[1740574304155,51.37148314,136.84,136.72,136.2]
[1740574304354,8.94,136.83,136.71,226.4147]
[1740574304775,8.94,136.83,136.71,219.1]
[1740574304977,8.94,136.83,136.72,18.64964886]
[1740574305268,16.2483,136.83,136.72,18.64964886]
[1740574305450,8.94,136.83,136.72,18.64964886]
[1740574306066,20.42648471,136.79,136.68,1.5877]
[1740574306370,6.5616,136.78,136.68,1.5877]
[1740574306547,8.9,136.77,136.69,18.64964886]
[1740574306749,8.9,136.77,136.7,7.3152]
[1740574306956,8.9,136.77,136.69,143.5156]
[1740574307163,8.9,136.77,136.69,136.2]
[1740574307550,8.9,136.77,136.7,18.64964886]
[1740574309673,8.9,136.77,136.7,108.86484886]
[1740574310054,8.9,136.77,136.7,101.54964886]
[1740574310761,8.9,136.77,136.7,108.86484886]
[1740574311156,8.9,136.77,136.7,101.54964886]
[1740574311357,8.9,136.77,136.7,108.86474886]
[1740574311559,6.5616,136.78,136.7,108.86474886]
[1740574311844,8.86,136.77,136.7,108.86474886]
[1740574312350,6.4662,136.83,136.72,1.0]
[1740574312550,6.4662,136.83,136.75,18.79181043]
[1740574312767,6.4662,136.83,136.75,238.89181043]
[1740574313069,1.4162,136.89,136.78,0.14216157]
[1740574313070,8.84,136.86,136.78,0.14216157]
[1740574313260,8.84,136.86,136.79,18.64964886]
[1740574313666,6.157,136.87,136.79,18.64964886]
[1740574313868,51.37148314,136.9,136.8,0.14216157]
[1740574314061,8.82,136.88,136.83,18.64964886]
[1740574314267,8.82,136.88,136.83,237.74964886]
[1740574314470,0.063,136.91,136.83,238.74964886]
[1740574314663,0.063,136.91,136.85,18.64964886]
[1740574314863,0.063,136.91,136.87,18.64964886]
[1740574315171,20.27146001,136.96,136.9,0.42648471]
[1740574315371,20.27146001,136.96,136.91,18.64964886]
[1740574315558,20.27146001,136.96,136.93,18.64964886]
[1740574315759,20.27146001,136.96,136.93,237.74964886]
[1740574316166,20.27146001,136.96,136.93,219.1]
[1740574316773,20.27146001,136.96,136.89,82.9]
[1740574316961,20.27146001,136.96,136.89,219.1]
[1740574317165,20.27146001,136.96,136.9,18.64964886]
[1740574317351,20.27146001,136.96,136.9,237.74964886]
[1740574318553,20.27146001,136.96,136.9,219.1]
[1740574318878,20.27146001,136.96,136.85,220.7114]
[1740574319575,20.27146001,136.96,136.86,18.64964886]
[1740574319775,51.37148314,136.95,136.86,82.9]
[1740574319977,8.78,136.94,136.86,82.9]
[1740574320160,0.14216157,136.93,136.86,82.9]
[1740574320359,51.37148314,136.92,136.83,82.9]
[1740574320564,51.37148314,136.91,136.83,82.9]
[1740574320882,51.37148314,136.91,136.84,18.64964886]
[1740574321062,8.78,136.94,136.84,18.64964886]
[1740574321259,52.94012942,136.93,136.83,82.9]
[1740574321458,51.37148314,136.92,136.8,219.1]
[1740574321856,51.37148314,136.91,136.81,0.14216157]
[1740574322051,0.14216157,136.92,136.81,219.1]
[1740574322272,51.37148314,136.91,136.81,82.9]
[1740574322472,1.0,136.93,136.81,82.9]
[1740574322473,51.37148314,136.93,136.82,18.64964886]
[1740574322664,51.37148314,136.93,136.82,19.64964886]
[1740574322969,8.76,136.92,136.82,245.05844886]
[1740574323291,8.76,136.92,136.82,237.74964886]
[1740574323660,8.76,136.92,136.82,245.05844886]
[1740574323861,8.76,136.92,136.83,0.42648471]
[1740574324688,8.76,136.92,136.85,0.42648471]
[1740574324992,21.49343861,136.96,136.89,18.64964886]
[1740574325165,21.49343861,136.96,136.91,18.64964886]
[1740574325367,21.49343861,136.96,136.91,237.74964886]
[1740574325583,21.49343861,136.96,136.92,0.42648471]
[1740574325773,21.49343861,136.96,136.93,18.64964886]
[1740574325959,6.84150977,136.96,136.95,39.79181043]
[1740574326168,5.17490977,136.96,136.95,257.89181043]
[1740574326367,8.7,137.05,136.96,20.07613357]
[1740574326577,0.063,137.06,136.98,20.07613357]
[1740574326768,0.063,137.06,136.98,21.07613357]
[1740574326966,0.063,137.06,136.99,7.2998]
[1740574327192,0.063,137.06,136.99,226.3998]
[1740574327386,0.063,137.06,137.0,18.64964886]
[1740574328982,0.063,137.06,137.02,18.64964886]
[1740574329187,0.063,137.06,137.02,237.74964886]
[1740574330085,0.063,137.06,137.02,219.1]
[1740574330296,0.063,137.06,136.95,220.6199]
[1740574330466,0.063,137.06,136.95,228.9217]
[1740574330673,0.063,137.06,136.97,18.79181043]
[1740574331173,0.063,137.06,136.99,18.64964886]
[1740574331373,0.063,137.06,136.99,237.74964886]
[1740574331568,0.063,137.06,136.99,219.1]
[1740574331968,0.063,137.06,137.0,18.64964886]
[1740574332187,0.063,137.06,136.99,219.1]
[1740574332496,0.063,137.06,136.99,82.9]
[1740574332685,51.37148314,137.05,136.96,82.9]
[1740574332873,20.0,137.02,136.96,82.9]
[1740574333077,60.03148314,137.01,136.92,82.9]
[1740574333383,6.32286157,136.99,136.87,226.4059]
[1740574333596,51.37148314,136.98,136.87,226.4059]
[1740574333775,51.37148314,136.98,136.88,18.64964886]
[1740574334083,6.1807,136.99,136.88,219.1]
[1740574334269,8.64,136.98,136.89,19.21829514]
[1740574334469,8.64,136.98,136.89,18.64964886]
[1740574334678,8.64,137.0,136.9,2.81774978]
[1740574334871,8.64,137.0,136.92,0.28432314]
[1740574335391,8.64,137.0,136.94,18.64964886]
[1740574335597,8.64,137.0,136.94,237.74964886]
[1740574336184,8.64,137.0,136.94,82.9]
[1740574337093,8.64,137.0,136.94,90.2022]
[1740574337295,8.64,137.0,136.92,82.9]
[1740574337673,20.0,136.96,136.9,82.9]
[1740574337990,51.37148314,136.95,136.87,82.9]
[1740574338200,30.0,136.89,136.83,82.9]
[1740574338385,8.64,136.88,136.83,82.9]
[1740574338588,8.64,136.88,136.81,82.963]
[1740574339701,28.71266341,136.89,136.81,82.963]
[1740574339877,8.62,136.87,136.81,82.963]
[1740574340680,8.62,136.87,136.81,219.163]
[1740574340880,28.71266341,136.89,136.82,18.64964886]
[1740574341126,28.71266341,136.89,136.82,20.18374707]
[1740574341294,28.71266341,136.89,136.83,7.73478471]
[1740574341601,28.71266341,136.89,136.83,82.9]
[1740574342786,28.71266341,136.89,136.83,219.1]
[1740574343574,28.71266341,136.89,136.84,18.64964886]
[1740574343795,28.71266341,136.89,136.84,239.28387361]
[1740574344002,28.71266341,136.89,136.84,237.74964886]
[1740574344187,28.71266341,136.89,136.86,18.64964886]
[1740574344389,28.71266341,136.89,136.87,0.42648471]
[1740574344791,28.71266341,136.89,136.86,237.74964886]
[1740574345383,28.71266341,136.89,136.88,18.64964886]
[1740574346081,28.71266341,136.89,136.86,226.4065]
[1740574346502,28.71266341,136.89,136.86,219.1]
[1740574346702,28.71266341,136.89,136.87,18.64964886]
[1740574346916,28.71266341,136.89,136.87,101.54964886]
[1740574347082,28.71266341,136.89,136.85,82.9]
[1740574347705,37.25266341,136.89,136.85,82.9]
[1740574349294,44.55786341,136.89,136.85,82.9]
[1740574349506,37.25266341,136.89,136.81,82.963]
[1740574349900,88.62414655,136.89,136.81,82.963]
[1740574350104,37.25266341,136.89,136.82,18.64964886]
[1740574350285,37.25266341,136.89,136.82,239.28396123]
[1740574350486,37.25266341,136.89,136.83,0.42648471]
[1740574350487,28.71266341,136.89,136.83,0.42648471]
[1740574350697,28.71266341,136.89,136.83,219.52648471]
[1740574351593,28.71266341,136.89,136.85,18.64964886]
[1740574351800,28.71266341,136.89,136.85,237.74964886]
[1740574352922,14.05966195,136.89,136.88,19.21829514]
[1740574353220,6.4944,136.99,136.89,18.64964886]
[1740574353523,8.49,137.0,136.92,18.64964886]
[1740574353698,8.49,137.0,136.92,237.74964886]
[1740574354095,8.49,137.0,136.92,219.1]
[1740574354900,8.49,137.0,136.93,18.64964886]
[1740574355333,0.03,137.0,136.94,0.42648471]
[1740574355496,0.03,137.0,136.95,27.48419353]
[1740574355813,0.03,137.0,136.95,246.58419353]
[1740574356015,0.03,137.0,136.95,219.1]
[1740574356215,0.03,137.0,136.95,82.9]
[1740574357331,0.03,137.0,136.96,18.64964886]
[1740574357529,0.03,137.0,136.96,25.95094886]
[1740574357696,0.03,137.0,136.96,18.64964886]
[1740574357901,0.03,137.0,136.95,219.1]
[1740574358325,0.03,137.0,136.95,82.9]
[1740574359802,0.03,137.0,136.91,82.9]
[1740574359803,20.0,136.98,136.91,82.9]
[1740574360004,8.42,136.97,136.91,82.9]
[1740574360204,8.42,136.97,136.87,219.1]
[1740574361209,51.37148314,136.96,136.87,82.9]
[1740574361406,51.37148314,136.95,136.87,82.9]
[1740574361613,7.3024,136.94,136.87,82.9]
[1740574361813,58.67388314,136.94,136.87,82.9]
[1740574362002,51.37148314,136.94,136.87,82.9]
[1740574363411,51.37148314,136.96,136.87,82.9]
[1740574363727,8.42,136.97,136.89,7.3051]
[1740574363937,8.42,136.97,136.89,219.1]
[1740574364815,8.42,136.97,136.9,18.64964886]
[1740574365013,51.40148314,137.0,136.9,18.64964886]
[1740574365220,8.38,136.99,136.9,237.74964886]
[1740574365930,8.38,136.99,136.91,7.304]
[1740574366331,0.03,137.0,136.91,226.404]
[1740574366512,8.36,136.99,136.92,18.64964886]
[1740574366718,8.36,136.99,136.92,20.18262657]
[1740574366914,0.03,137.0,136.95,19.07613357]
[1740574367126,0.03,137.0,136.95,238.17613357]
[1740574367329,0.03,137.0,136.96,1.53251132]
[1740574368030,0.063,137.06,136.97,26.37693357]
[1740574368221,0.063,137.06,136.98,1.53215523]
[1740574368526,0.063,137.06,136.99,19.07613357]
[1740574369119,0.03,137.0,136.99,238.17613357]
[1740574369732,0.03,137.0,136.99,245.47593357]
[1740574369921,0.03,137.0,136.99,245.04944886]
[1740574371028,0.03,137.0,136.99,245.61809514]
[1740574373337,0.03,137.0,136.99,245.04944886]
[1740574373847,0.063,137.06,137.03,0.14216157]
[1740574374048,0.063,137.06,137.04,0.14216157]
[1740574374528,0.063,137.06,137.05,7.2966]
[1740574374722,0.063,137.06,137.05,25.94624886]
[1740574375633,0.063,137.06,137.05,18.64964886]
[1740574375815,0.063,137.06,137.03,90.1974]
[1740574376016,0.063,137.06,137.03,82.9]
[1740574376217,0.063,137.06,137.0,7.2992]
[1740574376619,0.063,137.06,137.01,18.64964886]
[1740574377051,0.063,137.06,136.99,219.1]
[1740574377345,0.063,137.06,136.99,226.3996]
[1740574377545,0.063,137.06,137.0,18.64964886]
[1740574378529,0.063,137.06,137.01,0.14216157]
[1740574378728,0.063,137.06,137.0,18.64964886]
[1740574379254,0.063,137.06,137.01,0.14216157]
[1740574379734,0.063,137.06,137.0,25.94864886]
[1740574381124,8.24,137.05,136.99,226.3997]
[1740574381733,8.24,137.05,136.99,90.1997]
[1740574382150,15.5368,137.05,136.96,7.3012]
[1740574382319,15.5368,137.05,136.96,90.2012]
[1740574382529,15.5368,137.05,136.96,82.9]
[1740574382745,15.5368,137.05,136.96,82.963]
[1740574382746,22.0474,137.05,136.96,82.963]
[1740574383655,73.41888314,137.05,136.96,82.963]
[1740574384040,20.0,137.02,136.96,82.963]
[1740574384366,20.0,137.01,136.96,0.063]
[1740574385533,20.0,136.97,136.96,0.063]
[1740574385768,8.2,136.97,136.96,0.063]
[1740574386067,20.0,136.95,136.88,82.9]
[1740574386231,27.3022,136.95,136.88,82.9]
[1740574386428,20.0,136.91,136.85,82.963]
[1740574386669,28.2,136.9,136.85,0.063]
[1740574386851,8.2,136.89,136.85,0.063]
[1740574387564,20.0,136.86,136.85,0.063]
[1740574387729,1.0,136.85,136.82,0.063]
[1740574387933,1.0,136.82,136.81,0.063]
[1740574388139,28.2,136.82,136.72,82.9]
[1740574388359,51.51364471,136.81,136.72,90.214]
[1740574388952,51.37148314,136.83,136.74,1.0]
[1740574389155,51.37148314,136.83,136.75,20.0]
[1740574389341,51.37148314,136.85,136.76,18.64964886]
[1740574389539,51.37148314,136.85,136.79,20.0]
[1740574389740,51.37148314,136.85,136.78,1.0]
[1740574389741,8.26,136.86,136.8,20.0]
[1740574390052,51.37148314,136.89,136.78,82.9]
[1740574390263,8.38,136.9,136.81,20.0]
[1740574390439,20.0,136.86,136.81,82.9]
[1740574390647,8.38,136.9,136.81,82.9]
[1740574390843,8.38,136.9,136.82,18.64964886]
[1740574391053,20.0,136.87,136.82,18.64964886]
[1740574391352,20.0,136.87,136.82,101.54964886]
[1740574391536,20.0,136.87,136.82,82.9]
[1740574391738,59.75148314,136.9,136.83,18.64964886]
[1740574391932,8.38,136.9,136.84,0.42648471]
[1740574392131,8.38,136.9,136.83,237.74964886]
[1740574393058,8.58,136.94,136.84,0.42648471]
[1740574393359,52.93388314,136.99,136.86,0.42648471]
[1740574393564,8.58,136.98,136.88,0.42648471]
[1740574393764,8.58,136.98,136.89,18.64964886]
[1740574393937,8.58,136.98,136.9,0.42648471]
[1740574394250,10.97475282,137.0,136.94,0.42648471]
[1740574394453,10.97475282,137.0,136.95,18.64964886]
[1740574395056,8.58,137.04,136.97,0.14216157]
[1740574395248,8.58,137.04,136.97,136.34216157]
[1740574395650,8.58,137.04,136.97,136.2]
[1740574395849,20.0,137.01,136.92,227.68]
[1740574396050,20.0,137.01,136.92,219.1]
[1740574396265,20.0,137.0,136.92,219.1]
[1740574396558,1.14216157,137.0,136.9,136.2]
[1740574396771,20.0,136.99,136.91,18.64964886]
[1740574397435,20.0,137.0,136.91,18.64964886]
[1740574398144,20.0,137.0,136.88,0.03]
[1740574398145,20.0,136.95,136.88,0.03]
[1740574398346,28.56,136.94,136.88,0.03]
[1740574398655,35.8625,136.94,136.88,0.03]
[1740574398853,28.56,136.94,136.88,0.03]
[1740574399255,29.56,136.94,136.88,0.03]
[1740574399449,0.14216157,136.93,136.88,0.03]
[1740574399657,19.21829514,136.93,136.88,0.03]
[1740574400168,51.37148314,136.92,136.88,0.03]
[1740574400468,20.0,136.89,136.88,0.03]
[1740574400764,0.14216157,136.89,136.88,0.03]
[1740574401261,20.0,136.89,136.88,0.03]
[1740574401441,39.21829514,136.89,136.88,0.03]
[1740574402156,0.14216157,136.86,136.77,82.9]
[1740574402464,8.54,136.85,136.77,82.9]
[1740574402641,15.8474,136.85,136.77,82.9]
[1740574402841,8.54,136.85,136.77,82.9]
[1740574403461,8.54,136.85,136.78,18.64964886]
[1740574403686,8.54,136.85,136.77,219.1]
[1740574404159,8.54,136.85,136.78,19.07613357]
[1740574404365,8.54,136.85,136.78,219.1]
[1740574404665,15.8474,136.85,136.78,82.9]
[1740574405167,20.0,136.81,136.73,219.1]
[1740574405372,81.1,136.84,136.73,219.1]
[1740574405549,81.1,136.83,136.73,219.1]
[1740574406450,88.4086,136.83,136.73,219.1]
[1740574407151,88.4086,136.83,136.74,19.07613357]
[1740574408347,81.1,136.83,136.74,27.92410344]
[1740574408574,7.3079,136.84,136.74,247.02410344]
[1740574408761,7.3079,136.84,136.74,245.48913357]
[1740574409586,7.3079,136.84,136.74,219.1]
[1740574409864,7.3079,136.84,136.75,18.933972]
[1740574410053,7.3079,136.84,136.74,219.1]
[1740574411781,7.3079,136.84,136.74,226.4131]
[1740574412076,7.3079,136.84,136.74,219.1]
[1740574412399,7.3079,136.84,136.75,19.21829514]
[1740574412673,7.3079,136.84,136.75,18.933972]
[1740574412872,7.3079,136.84,136.74,219.1]
[1740574413652,7.3067,136.86,136.78,0.28432314]
[1740574413875,8.46,136.88,136.79,18.933972]
[1740574414876,8.44,136.87,136.79,18.933972]
[1740574415070,8.44,136.87,136.79,248.45363442]
[1740574415278,8.44,136.87,136.8,18.933972]
[1740574415452,8.44,136.87,136.82,18.933972]
[1740574415654,8.44,136.87,136.82,238.033972]
[1740574415850,6.0936,136.92,136.82,238.033972]
[1740574416072,81.1,136.91,136.82,82.9]
[1740574416286,0.28432314,136.9,136.82,82.9]
[1740574416652,89.54,136.91,136.82,82.9]
[1740574417262,20.0,136.88,136.82,82.9]
[1740574417578,20.0,136.86,136.8,219.1]
[1740574417773,8.4,136.85,136.8,219.1]
[1740574417968,8.4,136.85,136.77,219.1]
[1740574418168,89.5,136.85,136.77,82.9]
[1740574418360,81.1,136.84,136.75,222.82166002]
[1740574418565,81.1,136.84,136.75,219.1]
[1740574418769,20.0,136.81,136.75,219.1]
[1740574418969,81.1,136.82,136.75,82.9]
[1740574419364,96.8074,136.85,136.75,219.1]
[1740574419583,81.1,136.84,136.75,82.9]
[1740574419783,81.1,136.84,136.75,82.93]
[1740574422881,81.1,136.84,136.75,90.2425]
[1740574423383,81.1,136.83,136.75,82.93]
[1740574425376,88.4087,136.83,136.75,82.93]
[1740574426488,81.1,136.83,136.75,90.2425]
[1740574426689,89.5,136.85,136.75,226.4425]
[1740574426909,8.36,136.84,136.75,244.724]
[1740574427200,8.36,136.84,136.75,226.4425]
[1740574427408,15.6678,136.84,136.75,226.4425]
[1740574427608,15.6678,136.84,136.75,219.13]
[1740574428107,81.1,136.83,136.75,82.93]
[1740574429376,88.4087,136.83,136.75,82.93]
[1740574430211,106.6795,136.83,136.75,82.93]
[1740574430417,81.1,136.82,136.75,82.93]
[1740574430707,81.1,136.81,136.75,0.03]
[1740574431503,7.3099,136.8,136.75,0.03]
[1740574431705,88.4095,136.81,136.75,0.03]
[1740574433272,88.4085,136.83,136.75,82.93]
[1740574433874,20.0,136.8,136.75,82.93]
[1740574435295,20.0,136.79,136.75,82.93]
[1740574435498,15.631,136.78,136.75,0.03]
[1740574435707,8.32,136.78,136.75,0.03]
[1740574438411,20.0,136.76,136.75,0.03]
[1740574439328,81.1,136.77,136.75,0.03]
[1740574439502,7.312,136.76,136.75,0.03]
[1740574439903,81.1,136.77,136.75,0.03]
[1740574440626,81.1,136.8,136.75,0.03]
[1740574440820,8.26,136.79,136.75,0.03]
[1740574442105,8.26,136.79,136.75,82.93]
[1740574442718,81.1,136.83,136.75,82.93]
[1740574443050,8.24,136.82,136.75,225.2042]
[1740574443222,10.97475282,136.84,136.76,3.69326275]
[1740574443542,8.24,136.87,136.79,0.14216157]
[1740574443826,8.24,136.87,136.79,82.9]
[1740574444136,89.34,136.87,136.79,82.9]
[1740574445218,8.24,136.87,136.79,226.4104]
[1740574445830,11.03775282,136.88,136.8,2.1029417]
[1740574446135,11.03775282,136.88,136.82,0.56864628]
[1740574446312,11.03775282,136.88,136.82,266.06258884]
[1740574446511,9.37115282,136.88,136.84,0.56864628]
[1740574446831,9.37115282,136.88,136.85,1.53356084]
[1740574447027,0.063,136.91,136.87,0.14216157]
[1740574447216,0.063,136.91,136.88,15.27962542]
[1740574447420,0.063,136.91,136.9,1.68946157]
[1740574447733,0.063,136.91,136.9,222.32257994]
[1740574447909,9.37115282,136.97,136.91,0.14216157]
[1740574448111,9.37115282,136.97,136.91,219.24216157]
[1740574448422,9.37115282,136.97,136.93,0.14216157]
[1740574448622,9.37115282,136.97,136.95,0.14216157]
[1740574448829,9.37115282,136.97,136.95,219.24216157]
[1740574449128,7.70455282,136.97,136.96,14.50154628]
[1740574449327,7.70455282,136.97,136.96,14.07506157]
[1740574449531,6.03795282,136.97,136.96,14.50154628]
[1740574450027,0.063,137.0,136.99,0.14216157]
[1740574450229,0.063,137.0,136.99,219.52648471]
[1740574450414,0.063,137.0,136.99,219.66864628]
[1740574450617,0.063,137.06,137.01,0.14216157]
[1740574450814,0.063,137.06,137.02,0.14216157]
[1740574451021,0.063,137.06,137.03,0.14216157]
[1740574451219,0.063,137.06,137.04,0.14216157]
[1740574452216,0.063,137.06,137.04,219.1]
[1740574452420,0.063,137.06,137.01,219.1]
[1740574452620,0.063,137.06,137.01,82.9]
[1740574453028,0.063,137.06,137.02,2.10058196]
[1740574453337,0.063,137.06,137.01,82.9]
[1740574454931,8.283,137.05,137.01,82.9]
[1740574455332,8.283,137.05,137.0,136.2]
[1740574455639,18.64964886,137.04,136.98,82.9]
[1740574455841,20.0,137.01,136.96,136.2]
[1740574456052,18.64964886,137.0,136.93,219.1]
[1740574456221,8.22,136.99,136.93,82.9]
[1740574457040,8.22,136.99,136.9,224.5611]
[1740574457364,8.22,136.99,136.91,0.14216157]
[1740574457520,8.22,136.99,136.93,0.14216157]
[1740574457719,8.22,136.99,136.93,83.04216157]
[1740574458019,18.64964886,136.98,136.92,82.9]
[1740574458221,99.74964886,136.98,136.9,6.3611]
[1740574458418,18.64964886,136.96,136.86,219.1]
[1740574458644,81.1,136.95,136.86,82.9]
[1740574459030,81.1,136.98,136.88,0.14216157]
[1740574459222,7.3008,136.97,136.86,219.1]
[1740574459436,20.0,136.92,136.86,82.9]
[1740574459638,26.90964886,136.91,136.82,354.38]
[1740574459861,20.0,136.88,136.82,219.1]
[1740574460022,26.90964886,136.91,136.8,219.1]
[1740574460227,20.0,136.88,136.8,219.1]
[1740574460436,26.90964886,136.91,136.8,219.1]
[1740574460640,8.26,136.91,136.81,3.10272001]
[1740574460848,8.26,136.91,136.84,0.56864628]
[1740574461146,8.26,136.91,136.87,0.14216157]
[1740574461351,8.26,136.95,136.87,219.24216157]
[1740574461564,8.26,136.95,136.87,226.54816157]
[1740574462141,8.26,136.95,136.87,219.24216157]
[1740574462747,8.26,136.95,136.89,0.14216157]
[1740574463326,8.26,136.95,136.87,219.1]
[1740574463627,18.64964886,136.9,136.82,89.472]
[1740574463849,8.26,136.89,136.82,82.9]
[1740574464829,99.74964886,136.88,136.77,6.572]
[1740574465050,10.08292314,136.89,136.77,91.00659672]
[1740574465051,81.1,136.87,136.77,91.00659672]
[1740574465252,9.7986,136.89,136.77,235.51789672]
[1740574465452,9.7986,136.89,136.78,1.56864628]
[1740574465630,9.7986,136.89,136.82,0.14216157]
[1740574465831,9.7986,136.89,136.82,82.9]
[1740574466027,18.64964886,136.88,136.82,82.9]
[1740574466867,18.64964886,136.88,136.75,0.03]
[1740574466868,18.64964886,136.83,136.75,0.03]
[1740574467037,8.38,136.82,136.75,0.03]
[1740574468061,8.38,136.82,136.77,0.063]
[1740574468531,81.1,136.88,136.77,0.063]
[1740574468739,8.36,136.87,136.79,0.14216157]
[1740574468942,8.36,136.87,136.79,83.04216157]
[1740574469335,18.64964886,136.86,136.79,82.9]
[1740574469535,99.74964886,136.86,136.77,82.963]
[1740574469737,0.14216157,136.84,136.77,82.963]
[1740574469941,20.0,136.8,136.77,0.063]
[1740574470144,8.38,136.79,136.77,0.063]
[1740574472058,8.38,136.83,136.79,0.14216157]
[1740574472259,8.38,136.86,136.79,83.04216157]
[1740574472463,81.1,136.87,136.81,0.14216157]
[1740574472770,89.48,136.87,136.81,0.14216157]
[1740574473060,89.48,136.87,136.79,84.43437031]
[1740574473061,89.48,136.87,136.79,82.9]
[1740574473267,89.48,136.87,136.8,0.14216157]
[1740574473851,81.1,136.87,136.8,7.73638471]
[1740574474063,81.1,136.89,136.81,1.81864773]
[1740574474248,19.8742,136.95,136.81,1.81864773]
[1740574474249,81.1,136.94,136.85,0.28432314]
[1740574474564,8.38,136.93,136.86,0.14216157]
[1740574475474,81.1,136.94,136.88,0.14216157]
[1740574475767,1.6181,136.95,136.88,83.04216157]
[1740574475768,9.9781,136.95,136.88,83.04216157]
[1740574476062,8.36,136.95,136.88,83.04216157]
[1740574476471,89.46,136.96,136.88,83.04216157]
[1740574477169,18.64964886,136.95,136.88,82.9]
[1740574477370,20.0,136.92,136.88,82.9]
[1740574478050,20.0,136.91,136.84,82.9]
[1740574478244,89.52,136.9,136.81,82.9]
[1740574478467,8.42,136.9,136.81,219.1]
[1740574478767,18.64964886,136.89,136.81,219.1]
[1740574479351,107.05474886,136.89,136.81,219.1]
[1740574480169,81.1,136.89,136.82,0.56864628]
[1740574480374,81.1,136.89,136.82,2.10272683]
[1740574480673,8.42,136.9,136.82,221.20272683]